{"text_format":"1","workbook":"xlsx","n_sheets":11,"sheets":["Кипяток 13","Обрубка 14","Токарь 15","Резьба 16","Перебор 17","Огнемет 18","Дроби 19","Замазка 20","Грунт 21","АП  22","категории"],"not_rendered":{"charts":0,"images":0,"macros":1,"external_links":0,"defined_names":4,"comments":0,"pivot_tables":0},"unopened":[],"bounds":{"document_bytes":16777216,"sheet_cells":100000,"rows_first":2000,"rows_last":500,"rows_between":2000,"halvings":0,"cell_chars":16384,"cell_head_chars":4096},"cells_cut":0,"cells_raw":0,"read":"whole","date_system":"1900"}

{"sheet":"Кипяток 13","index":0,"n_rows":12,"n_cols":14,"rows_kept":12,"cut":false,"hidden":false,"merged":[[0,11,0,12]]}
["Дата","ФИО                                   Литейка","№","Артикул изделия","Наименование изделия","Выработка ","Цена     1 изделия","Сумма",null,null,{"$f":"SUM(Брак2412132[[Выработка ]])","v":2},"Здесь только выработка"]
["2020-12-09",{"$f":"VLOOKUP(Брак2412132[[#This Row],[№]],категории!D:E,2,0)","v":"Шамеев Владимир"},74,39,{"$f":"VLOOKUP(Брак2412132[[#This Row],[Артикул изделия]],категории!I:J,2,0)","v":"Жар 29 (28х28см)"},0,{"$f":"VLOOKUP(Брак2412132[[#This Row],[Наименование изделия]],категории!J1:K65,2,0)","v":11.2},{"$f":"Брак2412132[[#This Row],[Выработка ]]*Брак2412132[[#This Row],[Цена     1 изделия]]","v":0},null,null,"Итого ",null,null," "]
["2020-12-14",{"$f":"VLOOKUP(Брак2412132[[#This Row],[№]],категории!D:E,2,0)","v":"Без имени и племени"},11,26,{"$f":"VLOOKUP(Брак2412132[[#This Row],[Артикул изделия]],категории!I:J,2,0)","v":"СК 26"},null,{"$f":"VLOOKUP(Брак2412132[[#This Row],[Наименование изделия]],категории!J9:K71,2,0)","v":{"$error":"#N/A"}},{"$f":"Брак2412132[[#This Row],[Выработка ]]*Брак2412132[[#This Row],[Цена     1 изделия]]","v":{"$error":"#N/A"}}]
["2020-12-14",{"$f":"VLOOKUP(Брак2412132[[#This Row],[№]],категории!D:E,2,0)","v":"Габитов Марсель"},110,29,{"$f":"VLOOKUP(Брак2412132[[#This Row],[Артикул изделия]],категории!I:J,2,0)","v":"СК 28 кв"},2,{"$f":"VLOOKUP(Брак2412132[[#This Row],[Наименование изделия]],категории!J3:K67,2,0)","v":9.5},{"$f":"Брак2412132[[#This Row],[Выработка ]]*Брак2412132[[#This Row],[Цена     1 изделия]]","v":19}]
["2020-12-10",{"$f":"VLOOKUP(Брак2412132[[#This Row],[№]],категории!D:E,2,0)","v":"Без имени и племени"},11,22,{"$f":"VLOOKUP(Брак2412132[[#This Row],[Артикул изделия]],категории!I:J,2,0)","v":"СК 22"},null,{"$f":"VLOOKUP(Брак2412132[[#This Row],[Наименование изделия]],категории!J4:K68,2,0)","v":7.5},{"$f":"Брак2412132[[#This Row],[Выработка ]]*Брак2412132[[#This Row],[Цена     1 изделия]]","v":0}]
[null,{"$f":"VLOOKUP(Брак2412132[[#This Row],[№]],категории!D:E,2,0)","v":{"$error":"#N/A"}},null,null,{"$f":"VLOOKUP(Брак2412132[[#This Row],[Артикул изделия]],категории!I:J,2,0)","v":{"$error":"#N/A"}},null,{"$f":"VLOOKUP(Брак2412132[[#This Row],[Наименование изделия]],категории!J5:K69,2,0)","v":{"$error":"#N/A"}},{"$f":"Брак2412132[[#This Row],[Выработка ]]*Брак2412132[[#This Row],[Цена     1 изделия]]","v":{"$error":"#N/A"}}]
[null,{"$f":"VLOOKUP(Брак2412132[[#This Row],[№]],категории!D:E,2,0)","v":{"$error":"#N/A"}},null,null,{"$f":"VLOOKUP(Брак2412132[[#This Row],[Артикул изделия]],категории!I:J,2,0)","v":{"$error":"#N/A"}},null,{"$f":"VLOOKUP(Брак2412132[[#This Row],[Наименование изделия]],категории!J6:K70,2,0)","v":{"$error":"#N/A"}},{"$f":"Брак2412132[[#This Row],[Выработка ]]*Брак2412132[[#This Row],[Цена     1 изделия]]","v":{"$error":"#N/A"}}]
[null,{"$f":"VLOOKUP(Брак2412132[[#This Row],[№]],категории!D:E,2,0)","v":{"$error":"#N/A"}},null,null,{"$f":"VLOOKUP(Брак2412132[[#This Row],[Артикул изделия]],категории!I:J,2,0)","v":{"$error":"#N/A"}},null,{"$f":"VLOOKUP(Брак2412132[[#This Row],[Наименование изделия]],категории!J7:K71,2,0)","v":{"$error":"#N/A"}},{"$f":"Брак2412132[[#This Row],[Выработка ]]*Брак2412132[[#This Row],[Цена     1 изделия]]","v":{"$error":"#N/A"}}]
[null,{"$f":"VLOOKUP(Брак2412132[[#This Row],[№]],категории!D:E,2,0)","v":{"$error":"#N/A"}},null,null,{"$f":"VLOOKUP(Брак2412132[[#This Row],[Артикул изделия]],категории!I:J,2,0)","v":{"$error":"#N/A"}},null,{"$f":"VLOOKUP(Брак2412132[[#This Row],[Наименование изделия]],категории!J8:K72,2,0)","v":{"$error":"#N/A"}},{"$f":"Брак2412132[[#This Row],[Выработка ]]*Брак2412132[[#This Row],[Цена     1 изделия]]","v":{"$error":"#N/A"}}]
[null,{"$f":"VLOOKUP(Брак2412132[[#This Row],[№]],категории!D:E,2,0)","v":{"$error":"#N/A"}},null,null,{"$f":"VLOOKUP(Брак2412132[[#This Row],[Артикул изделия]],категории!I:J,2,0)","v":{"$error":"#N/A"}},null,{"$f":"VLOOKUP(Брак2412132[[#This Row],[Наименование изделия]],категории!J9:K73,2,0)","v":{"$error":"#N/A"}},{"$f":"Брак2412132[[#This Row],[Выработка ]]*Брак2412132[[#This Row],[Цена     1 изделия]]","v":{"$error":"#N/A"}}]
[null,{"$f":"VLOOKUP(Брак2412132[[#This Row],[№]],категории!D:E,2,0)","v":{"$error":"#N/A"}},null,null,{"$f":"VLOOKUP(Брак2412132[[#This Row],[Артикул изделия]],категории!I:J,2,0)","v":{"$error":"#N/A"}},null,{"$f":"VLOOKUP(Брак2412132[[#This Row],[Наименование изделия]],категории!J10:K74,2,0)","v":{"$error":"#N/A"}},{"$f":"Брак2412132[[#This Row],[Выработка ]]*Брак2412132[[#This Row],[Цена     1 изделия]]","v":{"$error":"#N/A"}}]
[null,{"$f":"VLOOKUP(Брак2412132[[#This Row],[№]],категории!D:E,2,0)","v":{"$error":"#N/A"}},null,null,{"$f":"VLOOKUP(Брак2412132[[#This Row],[Артикул изделия]],категории!I:J,2,0)","v":{"$error":"#N/A"}},null,{"$f":"VLOOKUP(Брак2412132[[#This Row],[Наименование изделия]],категории!J11:K75,2,0)","v":{"$error":"#N/A"}},{"$f":"Брак2412132[[#This Row],[Выработка ]]*Брак2412132[[#This Row],[Цена     1 изделия]]","v":{"$error":"#N/A"}}]

{"sheet":"Обрубка 14","index":1,"n_rows":12,"n_cols":14,"rows_kept":12,"cut":false,"hidden":false,"merged":[[0,11,0,12]]}
["Дата","ФИО                                   Обрубка","№","Артикул изделия","Наименование изделия","Выработка               и Брак","Цена     1 изделия","Сумма",null,null,{"$f":"SUM(Брак241213[Выработка               и Брак])","v":0},"Подсказка:                                                                     Выработка - номер участка                                                                                           Брак - номер работника"]
["2020-12-09",{"$f":"VLOOKUP(Брак241213[[#This Row],[№]],категории!D:E,2,0)","v":"Шамеев Владимир"},74,39,{"$f":"VLOOKUP(Брак241213[[#This Row],[Артикул изделия]],категории!I:J,2,0)","v":"Жар 29 (28х28см)"},0,{"$f":"VLOOKUP(Брак241213[[#This Row],[Наименование изделия]],категории!J1:K65,2,0)","v":11.2},{"$f":"Брак241213[[#This Row],[Выработка               и Брак]]*Брак241213[[#This Row],[Цена     1 изделия]]","v":0},null,null,"Итого ",null,null," "]
["2020-12-10",{"$f":"VLOOKUP(Брак241213[[#This Row],[№]],категории!D:E,2,0)","v":"Без имени и племени"},11,20,{"$f":"VLOOKUP(Брак241213[[#This Row],[Артикул изделия]],категории!I:J,2,0)","v":"СК 20"},0,{"$f":"VLOOKUP(Брак241213[[#This Row],[Наименование изделия]],категории!J9:K71,2,0)","v":{"$error":"#N/A"}},{"$f":"Брак241213[[#This Row],[Выработка               и Брак]]*Брак241213[[#This Row],[Цена     1 изделия]]","v":{"$error":"#N/A"}}]
["2020-12-10",{"$f":"VLOOKUP(Брак241213[[#This Row],[№]],категории!D:E,2,0)","v":"Без имени и племени"},11,18,{"$f":"VLOOKUP(Брак241213[[#This Row],[Артикул изделия]],категории!I:J,2,0)","v":"СК 18"},0,{"$f":"VLOOKUP(Брак241213[[#This Row],[Наименование изделия]],категории!J3:K67,2,0)","v":{"$error":"#N/A"}},{"$f":"Брак241213[[#This Row],[Выработка               и Брак]]*Брак241213[[#This Row],[Цена     1 изделия]]","v":{"$error":"#N/A"}}]
["2020-12-10",{"$f":"VLOOKUP(Брак241213[[#This Row],[№]],категории!D:E,2,0)","v":"Без имени и племени"},11,18,{"$f":"VLOOKUP(Брак241213[[#This Row],[Артикул изделия]],категории!I:J,2,0)","v":"СК 18"},0,{"$f":"VLOOKUP(Брак241213[[#This Row],[Наименование изделия]],категории!J4:K68,2,0)","v":{"$error":"#N/A"}},{"$f":"Брак241213[[#This Row],[Выработка               и Брак]]*Брак241213[[#This Row],[Цена     1 изделия]]","v":{"$error":"#N/A"}}]
[null,{"$f":"VLOOKUP(Брак241213[[#This Row],[№]],категории!D:E,2,0)","v":{"$error":"#N/A"}},null,null,{"$f":"VLOOKUP(Брак241213[[#This Row],[Артикул изделия]],категории!I:J,2,0)","v":{"$error":"#N/A"}},null,{"$f":"VLOOKUP(Брак241213[[#This Row],[Наименование изделия]],категории!J5:K69,2,0)","v":{"$error":"#N/A"}},{"$f":"Брак241213[[#This Row],[Выработка               и Брак]]*Брак241213[[#This Row],[Цена     1 изделия]]","v":{"$error":"#N/A"}}]
[null,{"$f":"VLOOKUP(Брак241213[[#This Row],[№]],категории!D:E,2,0)","v":{"$error":"#N/A"}},null,null,{"$f":"VLOOKUP(Брак241213[[#This Row],[Артикул изделия]],категории!I:J,2,0)","v":{"$error":"#N/A"}},null,{"$f":"VLOOKUP(Брак241213[[#This Row],[Наименование изделия]],категории!J6:K70,2,0)","v":{"$error":"#N/A"}},{"$f":"Брак241213[[#This Row],[Выработка               и Брак]]*Брак241213[[#This Row],[Цена     1 изделия]]","v":{"$error":"#N/A"}}]
[null,{"$f":"VLOOKUP(Брак241213[[#This Row],[№]],категории!D:E,2,0)","v":{"$error":"#N/A"}},null,null,{"$f":"VLOOKUP(Брак241213[[#This Row],[Артикул изделия]],категории!I:J,2,0)","v":{"$error":"#N/A"}},null,{"$f":"VLOOKUP(Брак241213[[#This Row],[Наименование изделия]],категории!J7:K71,2,0)","v":{"$error":"#N/A"}},{"$f":"Брак241213[[#This Row],[Выработка               и Брак]]*Брак241213[[#This Row],[Цена     1 изделия]]","v":{"$error":"#N/A"}}]
[null,{"$f":"VLOOKUP(Брак241213[[#This Row],[№]],категории!D:E,2,0)","v":{"$error":"#N/A"}},null,null,{"$f":"VLOOKUP(Брак241213[[#This Row],[Артикул изделия]],категории!I:J,2,0)","v":{"$error":"#N/A"}},null,{"$f":"VLOOKUP(Брак241213[[#This Row],[Наименование изделия]],категории!J8:K72,2,0)","v":{"$error":"#N/A"}},{"$f":"Брак241213[[#This Row],[Выработка               и Брак]]*Брак241213[[#This Row],[Цена     1 изделия]]","v":{"$error":"#N/A"}}]
[null,{"$f":"VLOOKUP(Брак241213[[#This Row],[№]],категории!D:E,2,0)","v":{"$error":"#N/A"}},null,null,{"$f":"VLOOKUP(Брак241213[[#This Row],[Артикул изделия]],категории!I:J,2,0)","v":{"$error":"#N/A"}},null,{"$f":"VLOOKUP(Брак241213[[#This Row],[Наименование изделия]],категории!J9:K73,2,0)","v":{"$error":"#N/A"}},{"$f":"Брак241213[[#This Row],[Выработка               и Брак]]*Брак241213[[#This Row],[Цена     1 изделия]]","v":{"$error":"#N/A"}}]
[null,{"$f":"VLOOKUP(Брак241213[[#This Row],[№]],категории!D:E,2,0)","v":{"$error":"#N/A"}},null,null,{"$f":"VLOOKUP(Брак241213[[#This Row],[Артикул изделия]],категории!I:J,2,0)","v":{"$error":"#N/A"}},null,{"$f":"VLOOKUP(Брак241213[[#This Row],[Наименование изделия]],категории!J10:K74,2,0)","v":{"$error":"#N/A"}},{"$f":"Брак241213[[#This Row],[Выработка               и Брак]]*Брак241213[[#This Row],[Цена     1 изделия]]","v":{"$error":"#N/A"}}]
[null,{"$f":"VLOOKUP(Брак241213[[#This Row],[№]],категории!D:E,2,0)","v":{"$error":"#N/A"}},null,null,{"$f":"VLOOKUP(Брак241213[[#This Row],[Артикул изделия]],категории!I:J,2,0)","v":{"$error":"#N/A"}},null,{"$f":"VLOOKUP(Брак241213[[#This Row],[Наименование изделия]],категории!J11:K75,2,0)","v":{"$error":"#N/A"}},{"$f":"Брак241213[[#This Row],[Выработка               и Брак]]*Брак241213[[#This Row],[Цена     1 изделия]]","v":{"$error":"#N/A"}}]

{"sheet":"Токарь 15","index":2,"n_rows":12,"n_cols":14,"rows_kept":12,"cut":false,"hidden":false,"merged":[[0,11,0,12]]}
["Дата","ФИО                                               Проточка","№","Артикул изделия","Наименование изделия","Выработка               и Брак","Цена     1 изделия","Сумма",null,null,{"$f":"SUM(Брак24121314[Выработка               и Брак])","v":0},"Подсказка:                                                                     Выработка - номер участка                                                                                           Брак - номер работника"]
["2020-12-09",{"$f":"VLOOKUP(Брак24121314[[#This Row],[№]],категории!D:E,2,0)","v":"Шамеев Владимир"},74,39,{"$f":"VLOOKUP(Брак24121314[[#This Row],[Артикул изделия]],категории!I:J,2,0)","v":"Жар 29 (28х28см)"},0,{"$f":"VLOOKUP(Брак24121314[[#This Row],[Наименование изделия]],категории!J1:K65,2,0)","v":11.2},{"$f":"Брак24121314[[#This Row],[Выработка               и Брак]]*Брак24121314[[#This Row],[Цена     1 изделия]]","v":0},null,null,"Итого ",null,null," "]
["2020-12-10",{"$f":"VLOOKUP(Брак24121314[[#This Row],[№]],категории!D:E,2,0)","v":"Без имени и племени"},11,26,{"$f":"VLOOKUP(Брак24121314[[#This Row],[Артикул изделия]],категории!I:J,2,0)","v":"СК 26"},null,{"$f":"VLOOKUP(Брак24121314[[#This Row],[Наименование изделия]],категории!J9:K71,2,0)","v":{"$error":"#N/A"}},{"$f":"Брак24121314[[#This Row],[Выработка               и Брак]]*Брак24121314[[#This Row],[Цена     1 изделия]]","v":{"$error":"#N/A"}}]
["2020-12-10",{"$f":"VLOOKUP(Брак24121314[[#This Row],[№]],категории!D:E,2,0)","v":"Без имени и племени"},11,18,{"$f":"VLOOKUP(Брак24121314[[#This Row],[Артикул изделия]],категории!I:J,2,0)","v":"СК 18"},null,{"$f":"VLOOKUP(Брак24121314[[#This Row],[Наименование изделия]],категории!J3:K67,2,0)","v":{"$error":"#N/A"}},{"$f":"Брак24121314[[#This Row],[Выработка               и Брак]]*Брак24121314[[#This Row],[Цена     1 изделия]]","v":{"$error":"#N/A"}}]
[null,{"$f":"VLOOKUP(Брак24121314[[#This Row],[№]],категории!D:E,2,0)","v":{"$error":"#N/A"}},null,null,{"$f":"VLOOKUP(Брак24121314[[#This Row],[Артикул изделия]],категории!I:J,2,0)","v":{"$error":"#N/A"}},null,{"$f":"VLOOKUP(Брак24121314[[#This Row],[Наименование изделия]],категории!J4:K68,2,0)","v":{"$error":"#N/A"}},{"$f":"Брак24121314[[#This Row],[Выработка               и Брак]]*Брак24121314[[#This Row],[Цена     1 изделия]]","v":{"$error":"#N/A"}}]
[null,{"$f":"VLOOKUP(Брак24121314[[#This Row],[№]],категории!D:E,2,0)","v":{"$error":"#N/A"}},null,null,{"$f":"VLOOKUP(Брак24121314[[#This Row],[Артикул изделия]],категории!I:J,2,0)","v":{"$error":"#N/A"}},null,{"$f":"VLOOKUP(Брак24121314[[#This Row],[Наименование изделия]],категории!J5:K69,2,0)","v":{"$error":"#N/A"}},{"$f":"Брак24121314[[#This Row],[Выработка               и Брак]]*Брак24121314[[#This Row],[Цена     1 изделия]]","v":{"$error":"#N/A"}}]
[null,{"$f":"VLOOKUP(Брак24121314[[#This Row],[№]],категории!D:E,2,0)","v":{"$error":"#N/A"}},null,null,{"$f":"VLOOKUP(Брак24121314[[#This Row],[Артикул изделия]],категории!I:J,2,0)","v":{"$error":"#N/A"}},null,{"$f":"VLOOKUP(Брак24121314[[#This Row],[Наименование изделия]],категории!J6:K70,2,0)","v":{"$error":"#N/A"}},{"$f":"Брак24121314[[#This Row],[Выработка               и Брак]]*Брак24121314[[#This Row],[Цена     1 изделия]]","v":{"$error":"#N/A"}}]
[null,{"$f":"VLOOKUP(Брак24121314[[#This Row],[№]],категории!D:E,2,0)","v":{"$error":"#N/A"}},null,null,{"$f":"VLOOKUP(Брак24121314[[#This Row],[Артикул изделия]],категории!I:J,2,0)","v":{"$error":"#N/A"}},null,{"$f":"VLOOKUP(Брак24121314[[#This Row],[Наименование изделия]],категории!J7:K71,2,0)","v":{"$error":"#N/A"}},{"$f":"Брак24121314[[#This Row],[Выработка               и Брак]]*Брак24121314[[#This Row],[Цена     1 изделия]]","v":{"$error":"#N/A"}}]
[null,{"$f":"VLOOKUP(Брак24121314[[#This Row],[№]],категории!D:E,2,0)","v":{"$error":"#N/A"}},null,null,{"$f":"VLOOKUP(Брак24121314[[#This Row],[Артикул изделия]],категории!I:J,2,0)","v":{"$error":"#N/A"}},null,{"$f":"VLOOKUP(Брак24121314[[#This Row],[Наименование изделия]],категории!J8:K72,2,0)","v":{"$error":"#N/A"}},{"$f":"Брак24121314[[#This Row],[Выработка               и Брак]]*Брак24121314[[#This Row],[Цена     1 изделия]]","v":{"$error":"#N/A"}}]
[null,{"$f":"VLOOKUP(Брак24121314[[#This Row],[№]],категории!D:E,2,0)","v":{"$error":"#N/A"}},null,null,{"$f":"VLOOKUP(Брак24121314[[#This Row],[Артикул изделия]],категории!I:J,2,0)","v":{"$error":"#N/A"}},null,{"$f":"VLOOKUP(Брак24121314[[#This Row],[Наименование изделия]],категории!J9:K73,2,0)","v":{"$error":"#N/A"}},{"$f":"Брак24121314[[#This Row],[Выработка               и Брак]]*Брак24121314[[#This Row],[Цена     1 изделия]]","v":{"$error":"#N/A"}}]
[null,{"$f":"VLOOKUP(Брак24121314[[#This Row],[№]],категории!D:E,2,0)","v":{"$error":"#N/A"}},null,null,{"$f":"VLOOKUP(Брак24121314[[#This Row],[Артикул изделия]],категории!I:J,2,0)","v":{"$error":"#N/A"}},null,{"$f":"VLOOKUP(Брак24121314[[#This Row],[Наименование изделия]],категории!J10:K74,2,0)","v":{"$error":"#N/A"}},{"$f":"Брак24121314[[#This Row],[Выработка               и Брак]]*Брак24121314[[#This Row],[Цена     1 изделия]]","v":{"$error":"#N/A"}}]
[null,{"$f":"VLOOKUP(Брак24121314[[#This Row],[№]],категории!D:E,2,0)","v":{"$error":"#N/A"}},null,null,{"$f":"VLOOKUP(Брак24121314[[#This Row],[Артикул изделия]],категории!I:J,2,0)","v":{"$error":"#N/A"}},null,{"$f":"VLOOKUP(Брак24121314[[#This Row],[Наименование изделия]],категории!J11:K75,2,0)","v":{"$error":"#N/A"}},{"$f":"Брак24121314[[#This Row],[Выработка               и Брак]]*Брак24121314[[#This Row],[Цена     1 изделия]]","v":{"$error":"#N/A"}}]

{"sheet":"Резьба 16","index":3,"n_rows":10,"n_cols":14,"rows_kept":10,"cut":false,"hidden":false,"merged":[[0,11,0,12]]}
["Дата","ФИО                                                 Резьбонарезка","№","Артикул изделия","Наименование изделия","Выработка               и Брак","Цена     1 изделия","Сумма",null,null,{"$f":"SUM(Брак2412131415[Выработка               и Брак])","v":0},"Подсказка:                                                                     Выработка - номер участка                                                                                           Брак - номер работника"]
["2020-12-09",{"$f":"VLOOKUP(Брак2412131415[[#This Row],[№]],категории!D:E,2,0)","v":"Шамеев Владимир"},74,39,{"$f":"VLOOKUP(Брак2412131415[[#This Row],[Артикул изделия]],категории!I:J,2,0)","v":"Жар 29 (28х28см)"},0,{"$f":"VLOOKUP(Брак2412131415[[#This Row],[Наименование изделия]],категории!J1:K65,2,0)","v":11.2},{"$f":"Брак2412131415[[#This Row],[Выработка               и Брак]]*Брак2412131415[[#This Row],[Цена     1 изделия]]","v":0},null,null,"Итого ",null,null," "]
["2020-12-10",{"$f":"VLOOKUP(Брак2412131415[[#This Row],[№]],категории!D:E,2,0)","v":"Без имени и племени"},11,18,{"$f":"VLOOKUP(Брак2412131415[[#This Row],[Артикул изделия]],категории!I:J,2,0)","v":"СК 18"},null,{"$f":"VLOOKUP(Брак2412131415[[#This Row],[Наименование изделия]],категории!J7:K70,2,0)","v":{"$error":"#N/A"}},{"$f":"Брак2412131415[[#This Row],[Выработка               и Брак]]*Брак2412131415[[#This Row],[Цена     1 изделия]]","v":{"$error":"#N/A"}}]
[null,{"$f":"VLOOKUP(Брак2412131415[[#This Row],[№]],категории!D:E,2,0)","v":{"$error":"#N/A"}},null,null,{"$f":"VLOOKUP(Брак2412131415[[#This Row],[Артикул изделия]],категории!I:J,2,0)","v":{"$error":"#N/A"}},null,{"$f":"VLOOKUP(Брак2412131415[[#This Row],[Наименование изделия]],категории!J9:K71,2,0)","v":{"$error":"#N/A"}},{"$f":"Брак2412131415[[#This Row],[Выработка               и Брак]]*Брак2412131415[[#This Row],[Цена     1 изделия]]","v":{"$error":"#N/A"}}]
[null,{"$f":"VLOOKUP(Брак2412131415[[#This Row],[№]],категории!D:E,2,0)","v":{"$error":"#N/A"}},null,null,{"$f":"VLOOKUP(Брак2412131415[[#This Row],[Артикул изделия]],категории!I:J,2,0)","v":{"$error":"#N/A"}},null,{"$f":"VLOOKUP(Брак2412131415[[#This Row],[Наименование изделия]],категории!J4:K68,2,0)","v":{"$error":"#N/A"}},{"$f":"Брак2412131415[[#This Row],[Выработка               и Брак]]*Брак2412131415[[#This Row],[Цена     1 изделия]]","v":{"$error":"#N/A"}}]
[null,{"$f":"VLOOKUP(Брак2412131415[[#This Row],[№]],категории!D:E,2,0)","v":{"$error":"#N/A"}},null,null,{"$f":"VLOOKUP(Брак2412131415[[#This Row],[Артикул изделия]],категории!I:J,2,0)","v":{"$error":"#N/A"}},null,{"$f":"VLOOKUP(Брак2412131415[[#This Row],[Наименование изделия]],категории!J5:K69,2,0)","v":{"$error":"#N/A"}},{"$f":"Брак2412131415[[#This Row],[Выработка               и Брак]]*Брак2412131415[[#This Row],[Цена     1 изделия]]","v":{"$error":"#N/A"}}]
[null,{"$f":"VLOOKUP(Брак2412131415[[#This Row],[№]],категории!D:E,2,0)","v":{"$error":"#N/A"}},null,null,{"$f":"VLOOKUP(Брак2412131415[[#This Row],[Артикул изделия]],категории!I:J,2,0)","v":{"$error":"#N/A"}},null,{"$f":"VLOOKUP(Брак2412131415[[#This Row],[Наименование изделия]],категории!J6:K70,2,0)","v":{"$error":"#N/A"}},{"$f":"Брак2412131415[[#This Row],[Выработка               и Брак]]*Брак2412131415[[#This Row],[Цена     1 изделия]]","v":{"$error":"#N/A"}}]
[null,{"$f":"VLOOKUP(Брак2412131415[[#This Row],[№]],категории!D:E,2,0)","v":{"$error":"#N/A"}},null,null,{"$f":"VLOOKUP(Брак2412131415[[#This Row],[Артикул изделия]],категории!I:J,2,0)","v":{"$error":"#N/A"}},null,{"$f":"VLOOKUP(Брак2412131415[[#This Row],[Наименование изделия]],категории!J7:K71,2,0)","v":{"$error":"#N/A"}},{"$f":"Брак2412131415[[#This Row],[Выработка               и Брак]]*Брак2412131415[[#This Row],[Цена     1 изделия]]","v":{"$error":"#N/A"}}]
[null,{"$f":"VLOOKUP(Брак2412131415[[#This Row],[№]],категории!D:E,2,0)","v":{"$error":"#N/A"}},null,null,{"$f":"VLOOKUP(Брак2412131415[[#This Row],[Артикул изделия]],категории!I:J,2,0)","v":{"$error":"#N/A"}},null,{"$f":"VLOOKUP(Брак2412131415[[#This Row],[Наименование изделия]],категории!J8:K72,2,0)","v":{"$error":"#N/A"}},{"$f":"Брак2412131415[[#This Row],[Выработка               и Брак]]*Брак2412131415[[#This Row],[Цена     1 изделия]]","v":{"$error":"#N/A"}}]
[null,{"$f":"VLOOKUP(Брак2412131415[[#This Row],[№]],категории!D:E,2,0)","v":{"$error":"#N/A"}},null,null,{"$f":"VLOOKUP(Брак2412131415[[#This Row],[Артикул изделия]],категории!I:J,2,0)","v":{"$error":"#N/A"}},null,{"$f":"VLOOKUP(Брак2412131415[[#This Row],[Наименование изделия]],категории!J9:K73,2,0)","v":{"$error":"#N/A"}},{"$f":"Брак2412131415[[#This Row],[Выработка               и Брак]]*Брак2412131415[[#This Row],[Цена     1 изделия]]","v":{"$error":"#N/A"}}]

{"sheet":"Перебор 17","index":4,"n_rows":14,"n_cols":14,"rows_kept":14,"cut":false,"hidden":false,"merged":[[0,11,0,12]]}
["Дата","ФИО                                            Переборка","№","Артикул изделия","Наименование изделия","Выработка               и Брак","Цена     1 изделия","Сумма",null,null,{"$f":"SUM(Брак241213141516[Выработка               и Брак])","v":0},"Подсказка:                                                                     Выработка - номер участка                                                                                           Брак - номер работника"]
["2020-12-09",{"$f":"VLOOKUP(Брак241213141516[[#This Row],[№]],категории!D:E,2,0)","v":"Шамеев Владимир"},74,39,{"$f":"VLOOKUP(Брак241213141516[[#This Row],[Артикул изделия]],категории!I:J,2,0)","v":"Жар 29 (28х28см)"},0,{"$f":"VLOOKUP(Брак241213141516[[#This Row],[Наименование изделия]],категории!J1:K65,2,0)","v":11.2},{"$f":"Брак241213141516[[#This Row],[Выработка               и Брак]]*Брак241213141516[[#This Row],[Цена     1 изделия]]","v":0},null,null,"Итого ",null,null," "]
["2020-12-10",{"$f":"VLOOKUP(Брак241213141516[[#This Row],[№]],категории!D:E,2,0)","v":"Без имени и племени"},11,18,{"$f":"VLOOKUP(Брак241213141516[[#This Row],[Артикул изделия]],категории!I:J,2,0)","v":"СК 18"},null,{"$f":"VLOOKUP(Брак241213141516[[#This Row],[Наименование изделия]],категории!J7:K70,2,0)","v":{"$error":"#N/A"}},{"$f":"Брак241213141516[[#This Row],[Выработка               и Брак]]*Брак241213141516[[#This Row],[Цена     1 изделия]]","v":{"$error":"#N/A"}}]
[null,{"$f":"VLOOKUP(Брак241213141516[[#This Row],[№]],категории!D:E,2,0)","v":{"$error":"#N/A"}},null,null,{"$f":"VLOOKUP(Брак241213141516[[#This Row],[Артикул изделия]],категории!I:J,2,0)","v":{"$error":"#N/A"}},null,{"$f":"VLOOKUP(Брак241213141516[[#This Row],[Наименование изделия]],категории!J9:K71,2,0)","v":{"$error":"#N/A"}},{"$f":"Брак241213141516[[#This Row],[Выработка               и Брак]]*Брак241213141516[[#This Row],[Цена     1 изделия]]","v":{"$error":"#N/A"}}]
[null,{"$f":"VLOOKUP(Брак241213141516[[#This Row],[№]],категории!D:E,2,0)","v":{"$error":"#N/A"}},null,null,{"$f":"VLOOKUP(Брак241213141516[[#This Row],[Артикул изделия]],категории!I:J,2,0)","v":{"$error":"#N/A"}},null,{"$f":"VLOOKUP(Брак241213141516[[#This Row],[Наименование изделия]],категории!J4:K68,2,0)","v":{"$error":"#N/A"}},{"$f":"Брак241213141516[[#This Row],[Выработка               и Брак]]*Брак241213141516[[#This Row],[Цена     1 изделия]]","v":{"$error":"#N/A"}}]
[null,{"$f":"VLOOKUP(Брак241213141516[[#This Row],[№]],категории!D:E,2,0)","v":{"$error":"#N/A"}},null,null,{"$f":"VLOOKUP(Брак241213141516[[#This Row],[Артикул изделия]],категории!I:J,2,0)","v":{"$error":"#N/A"}},null,{"$f":"VLOOKUP(Брак241213141516[[#This Row],[Наименование изделия]],категории!J5:K69,2,0)","v":{"$error":"#N/A"}},{"$f":"Брак241213141516[[#This Row],[Выработка               и Брак]]*Брак241213141516[[#This Row],[Цена     1 изделия]]","v":{"$error":"#N/A"}}]
[null,{"$f":"VLOOKUP(Брак241213141516[[#This Row],[№]],категории!D:E,2,0)","v":{"$error":"#N/A"}},null,null,{"$f":"VLOOKUP(Брак241213141516[[#This Row],[Артикул изделия]],категории!I:J,2,0)","v":{"$error":"#N/A"}},null,{"$f":"VLOOKUP(Брак241213141516[[#This Row],[Наименование изделия]],категории!J6:K70,2,0)","v":{"$error":"#N/A"}},{"$f":"Брак241213141516[[#This Row],[Выработка               и Брак]]*Брак241213141516[[#This Row],[Цена     1 изделия]]","v":{"$error":"#N/A"}}]
[null,{"$f":"VLOOKUP(Брак241213141516[[#This Row],[№]],категории!D:E,2,0)","v":{"$error":"#N/A"}},null,null,{"$f":"VLOOKUP(Брак241213141516[[#This Row],[Артикул изделия]],категории!I:J,2,0)","v":{"$error":"#N/A"}},null,{"$f":"VLOOKUP(Брак241213141516[[#This Row],[Наименование изделия]],категории!J7:K71,2,0)","v":{"$error":"#N/A"}},{"$f":"Брак241213141516[[#This Row],[Выработка               и Брак]]*Брак241213141516[[#This Row],[Цена     1 изделия]]","v":{"$error":"#N/A"}}]
[null,{"$f":"VLOOKUP(Брак241213141516[[#This Row],[№]],категории!D:E,2,0)","v":{"$error":"#N/A"}},null,null,{"$f":"VLOOKUP(Брак241213141516[[#This Row],[Артикул изделия]],категории!I:J,2,0)","v":{"$error":"#N/A"}},null,{"$f":"VLOOKUP(Брак241213141516[[#This Row],[Наименование изделия]],категории!J8:K72,2,0)","v":{"$error":"#N/A"}},{"$f":"Брак241213141516[[#This Row],[Выработка               и Брак]]*Брак241213141516[[#This Row],[Цена     1 изделия]]","v":{"$error":"#N/A"}}]
[null,{"$f":"VLOOKUP(Брак241213141516[[#This Row],[№]],категории!D:E,2,0)","v":{"$error":"#N/A"}},null,null,{"$f":"VLOOKUP(Брак241213141516[[#This Row],[Артикул изделия]],категории!I:J,2,0)","v":{"$error":"#N/A"}},null,{"$f":"VLOOKUP(Брак241213141516[[#This Row],[Наименование изделия]],категории!J9:K73,2,0)","v":{"$error":"#N/A"}},{"$f":"Брак241213141516[[#This Row],[Выработка               и Брак]]*Брак241213141516[[#This Row],[Цена     1 изделия]]","v":{"$error":"#N/A"}}]
[null,{"$f":"VLOOKUP(Брак241213141516[[#This Row],[№]],категории!D:E,2,0)","v":{"$error":"#N/A"}},null,null,{"$f":"VLOOKUP(Брак241213141516[[#This Row],[Артикул изделия]],категории!I:J,2,0)","v":{"$error":"#N/A"}},null,{"$f":"VLOOKUP(Брак241213141516[[#This Row],[Наименование изделия]],категории!J10:K74,2,0)","v":{"$error":"#N/A"}},{"$f":"Брак241213141516[[#This Row],[Выработка               и Брак]]*Брак241213141516[[#This Row],[Цена     1 изделия]]","v":{"$error":"#N/A"}}]
[null,{"$f":"VLOOKUP(Брак241213141516[[#This Row],[№]],категории!D:E,2,0)","v":{"$error":"#N/A"}},null,null,{"$f":"VLOOKUP(Брак241213141516[[#This Row],[Артикул изделия]],категории!I:J,2,0)","v":{"$error":"#N/A"}},null,{"$f":"VLOOKUP(Брак241213141516[[#This Row],[Наименование изделия]],категории!J11:K75,2,0)","v":{"$error":"#N/A"}},{"$f":"Брак241213141516[[#This Row],[Выработка               и Брак]]*Брак241213141516[[#This Row],[Цена     1 изделия]]","v":{"$error":"#N/A"}}]
[null,{"$f":"VLOOKUP(Брак241213141516[[#This Row],[№]],категории!D:E,2,0)","v":{"$error":"#N/A"}},null,null,{"$f":"VLOOKUP(Брак241213141516[[#This Row],[Артикул изделия]],категории!I:J,2,0)","v":{"$error":"#N/A"}},null,{"$f":"VLOOKUP(Брак241213141516[[#This Row],[Наименование изделия]],категории!J12:K76,2,0)","v":{"$error":"#N/A"}},{"$f":"Брак241213141516[[#This Row],[Выработка               и Брак]]*Брак241213141516[[#This Row],[Цена     1 изделия]]","v":{"$error":"#N/A"}}]
[null,{"$f":"VLOOKUP(Брак241213141516[[#This Row],[№]],категории!D:E,2,0)","v":{"$error":"#N/A"}},null,null,{"$f":"VLOOKUP(Брак241213141516[[#This Row],[Артикул изделия]],категории!I:J,2,0)","v":{"$error":"#N/A"}},null,{"$f":"VLOOKUP(Брак241213141516[[#This Row],[Наименование изделия]],категории!J13:K77,2,0)","v":{"$error":"#N/A"}},{"$f":"Брак241213141516[[#This Row],[Выработка               и Брак]]*Брак241213141516[[#This Row],[Цена     1 изделия]]","v":{"$error":"#N/A"}}]

{"sheet":"Огнемет 18","index":5,"n_rows":12,"n_cols":14,"rows_kept":12,"cut":false,"hidden":false,"merged":[[0,11,0,12]]}
["Дата","ФИО                                   Обжиг","№","Артикул изделия","Наименование изделия","Выработка               и Брак","Цена     1 изделия","Сумма",null,null,{"$f":"SUM(Брак24121314151617[Выработка               и Брак])","v":0},"Подсказка:                                                                     Выработка - номер участка                                                                                           Брак - номер работника"]
["2020-12-09",{"$f":"VLOOKUP(Брак24121314151617[[#This Row],[№]],категории!D:E,2,0)","v":"Шамеев Владимир"},74,39,{"$f":"VLOOKUP(Брак24121314151617[[#This Row],[Артикул изделия]],категории!I:J,2,0)","v":"Жар 29 (28х28см)"},0,{"$f":"VLOOKUP(Брак24121314151617[[#This Row],[Наименование изделия]],категории!J1:K65,2,0)","v":11.2},{"$f":"Брак24121314151617[[#This Row],[Выработка               и Брак]]*Брак24121314151617[[#This Row],[Цена     1 изделия]]","v":0},null,null,"Итого ",null,null," "]
["2020-12-10",{"$f":"VLOOKUP(Брак24121314151617[[#This Row],[№]],категории!D:E,2,0)","v":"Без имени и племени"},11,18,{"$f":"VLOOKUP(Брак24121314151617[[#This Row],[Артикул изделия]],категории!I:J,2,0)","v":"СК 18"},null,{"$f":"VLOOKUP(Брак24121314151617[[#This Row],[Наименование изделия]],категории!J7:K70,2,0)","v":{"$error":"#N/A"}},{"$f":"Брак24121314151617[[#This Row],[Выработка               и Брак]]*Брак24121314151617[[#This Row],[Цена     1 изделия]]","v":{"$error":"#N/A"}}]
[null,{"$f":"VLOOKUP(Брак24121314151617[[#This Row],[№]],категории!D:E,2,0)","v":{"$error":"#N/A"}},null,null,{"$f":"VLOOKUP(Брак24121314151617[[#This Row],[Артикул изделия]],категории!I:J,2,0)","v":{"$error":"#N/A"}},null,{"$f":"VLOOKUP(Брак24121314151617[[#This Row],[Наименование изделия]],категории!J9:K71,2,0)","v":{"$error":"#N/A"}},{"$f":"Брак24121314151617[[#This Row],[Выработка               и Брак]]*Брак24121314151617[[#This Row],[Цена     1 изделия]]","v":{"$error":"#N/A"}}]
[null,{"$f":"VLOOKUP(Брак24121314151617[[#This Row],[№]],категории!D:E,2,0)","v":{"$error":"#N/A"}},null,null,{"$f":"VLOOKUP(Брак24121314151617[[#This Row],[Артикул изделия]],категории!I:J,2,0)","v":{"$error":"#N/A"}},null,{"$f":"VLOOKUP(Брак24121314151617[[#This Row],[Наименование изделия]],категории!J4:K68,2,0)","v":{"$error":"#N/A"}},{"$f":"Брак24121314151617[[#This Row],[Выработка               и Брак]]*Брак24121314151617[[#This Row],[Цена     1 изделия]]","v":{"$error":"#N/A"}}]
[null,{"$f":"VLOOKUP(Брак24121314151617[[#This Row],[№]],категории!D:E,2,0)","v":{"$error":"#N/A"}},null,null,{"$f":"VLOOKUP(Брак24121314151617[[#This Row],[Артикул изделия]],категории!I:J,2,0)","v":{"$error":"#N/A"}},null,{"$f":"VLOOKUP(Брак24121314151617[[#This Row],[Наименование изделия]],категории!J5:K69,2,0)","v":{"$error":"#N/A"}},{"$f":"Брак24121314151617[[#This Row],[Выработка               и Брак]]*Брак24121314151617[[#This Row],[Цена     1 изделия]]","v":{"$error":"#N/A"}}]
[null,{"$f":"VLOOKUP(Брак24121314151617[[#This Row],[№]],категории!D:E,2,0)","v":{"$error":"#N/A"}},null,null,{"$f":"VLOOKUP(Брак24121314151617[[#This Row],[Артикул изделия]],категории!I:J,2,0)","v":{"$error":"#N/A"}},null,{"$f":"VLOOKUP(Брак24121314151617[[#This Row],[Наименование изделия]],категории!J6:K70,2,0)","v":{"$error":"#N/A"}},{"$f":"Брак24121314151617[[#This Row],[Выработка               и Брак]]*Брак24121314151617[[#This Row],[Цена     1 изделия]]","v":{"$error":"#N/A"}}]
[null,{"$f":"VLOOKUP(Брак24121314151617[[#This Row],[№]],категории!D:E,2,0)","v":{"$error":"#N/A"}},null,null,{"$f":"VLOOKUP(Брак24121314151617[[#This Row],[Артикул изделия]],категории!I:J,2,0)","v":{"$error":"#N/A"}},null,{"$f":"VLOOKUP(Брак24121314151617[[#This Row],[Наименование изделия]],категории!J7:K71,2,0)","v":{"$error":"#N/A"}},{"$f":"Брак24121314151617[[#This Row],[Выработка               и Брак]]*Брак24121314151617[[#This Row],[Цена     1 изделия]]","v":{"$error":"#N/A"}}]
[null,{"$f":"VLOOKUP(Брак24121314151617[[#This Row],[№]],категории!D:E,2,0)","v":{"$error":"#N/A"}},null,null,{"$f":"VLOOKUP(Брак24121314151617[[#This Row],[Артикул изделия]],категории!I:J,2,0)","v":{"$error":"#N/A"}},null,{"$f":"VLOOKUP(Брак24121314151617[[#This Row],[Наименование изделия]],категории!J8:K72,2,0)","v":{"$error":"#N/A"}},{"$f":"Брак24121314151617[[#This Row],[Выработка               и Брак]]*Брак24121314151617[[#This Row],[Цена     1 изделия]]","v":{"$error":"#N/A"}}]
[null,{"$f":"VLOOKUP(Брак24121314151617[[#This Row],[№]],категории!D:E,2,0)","v":{"$error":"#N/A"}},null,null,{"$f":"VLOOKUP(Брак24121314151617[[#This Row],[Артикул изделия]],категории!I:J,2,0)","v":{"$error":"#N/A"}},null,{"$f":"VLOOKUP(Брак24121314151617[[#This Row],[Наименование изделия]],категории!J9:K73,2,0)","v":{"$error":"#N/A"}},{"$f":"Брак24121314151617[[#This Row],[Выработка               и Брак]]*Брак24121314151617[[#This Row],[Цена     1 изделия]]","v":{"$error":"#N/A"}}]
[null,{"$f":"VLOOKUP(Брак24121314151617[[#This Row],[№]],категории!D:E,2,0)","v":{"$error":"#N/A"}},null,null,{"$f":"VLOOKUP(Брак24121314151617[[#This Row],[Артикул изделия]],категории!I:J,2,0)","v":{"$error":"#N/A"}},null,{"$f":"VLOOKUP(Брак24121314151617[[#This Row],[Наименование изделия]],категории!J10:K74,2,0)","v":{"$error":"#N/A"}},{"$f":"Брак24121314151617[[#This Row],[Выработка               и Брак]]*Брак24121314151617[[#This Row],[Цена     1 изделия]]","v":{"$error":"#N/A"}}]
[null,{"$f":"VLOOKUP(Брак24121314151617[[#This Row],[№]],категории!D:E,2,0)","v":{"$error":"#N/A"}},null,null,{"$f":"VLOOKUP(Брак24121314151617[[#This Row],[Артикул изделия]],категории!I:J,2,0)","v":{"$error":"#N/A"}},null,{"$f":"VLOOKUP(Брак24121314151617[[#This Row],[Наименование изделия]],категории!J11:K75,2,0)","v":{"$error":"#N/A"}},{"$f":"Брак24121314151617[[#This Row],[Выработка               и Брак]]*Брак24121314151617[[#This Row],[Цена     1 изделия]]","v":{"$error":"#N/A"}}]

{"sheet":"Дроби 19","index":6,"n_rows":12,"n_cols":14,"rows_kept":12,"cut":false,"hidden":false,"merged":[[0,11,0,12]]}
["Дата","ФИО                                              Дробилка","№","Артикул изделия","Наименование изделия","Выработка               и Брак","Цена     1 изделия","Сумма",null,null,{"$f":"SUM(Брак2412131415161718[Выработка               и Брак])","v":0},"Подсказка:                                                                     Выработка - номер участка                                                                                           Брак - номер работника"]
["2020-12-09",{"$f":"VLOOKUP(Брак2412131415161718[[#This Row],[№]],категории!D:E,2,0)","v":"Шамеев Владимир"},74,39,{"$f":"VLOOKUP(Брак2412131415161718[[#This Row],[Артикул изделия]],категории!I:J,2,0)","v":"Жар 29 (28х28см)"},0,{"$f":"VLOOKUP(Брак2412131415161718[[#This Row],[Наименование изделия]],категории!J1:K65,2,0)","v":11.2},{"$f":"Брак2412131415161718[[#This Row],[Выработка               и Брак]]*Брак2412131415161718[[#This Row],[Цена     1 изделия]]","v":0},null,null,"Итого ",null,null," "]
["2020-12-10",{"$f":"VLOOKUP(Брак2412131415161718[[#This Row],[№]],категории!D:E,2,0)","v":"Без имени и племени"},11,18,{"$f":"VLOOKUP(Брак2412131415161718[[#This Row],[Артикул изделия]],категории!I:J,2,0)","v":"СК 18"},null,{"$f":"VLOOKUP(Брак2412131415161718[[#This Row],[Наименование изделия]],категории!J5:K69,2,0)","v":{"$error":"#N/A"}},{"$f":"Брак2412131415161718[[#This Row],[Выработка               и Брак]]*Брак2412131415161718[[#This Row],[Цена     1 изделия]]","v":{"$error":"#N/A"}}]
[null,{"$f":"VLOOKUP(Брак2412131415161718[[#This Row],[№]],категории!D:E,2,0)","v":{"$error":"#N/A"}},null,null,{"$f":"VLOOKUP(Брак2412131415161718[[#This Row],[Артикул изделия]],категории!I:J,2,0)","v":{"$error":"#N/A"}},null,{"$f":"VLOOKUP(Брак2412131415161718[[#This Row],[Наименование изделия]],категории!J7:K70,2,0)","v":{"$error":"#N/A"}},{"$f":"Брак2412131415161718[[#This Row],[Выработка               и Брак]]*Брак2412131415161718[[#This Row],[Цена     1 изделия]]","v":{"$error":"#N/A"}}]
[null,{"$f":"VLOOKUP(Брак2412131415161718[[#This Row],[№]],категории!D:E,2,0)","v":{"$error":"#N/A"}},null,null,{"$f":"VLOOKUP(Брак2412131415161718[[#This Row],[Артикул изделия]],категории!I:J,2,0)","v":{"$error":"#N/A"}},null,{"$f":"VLOOKUP(Брак2412131415161718[[#This Row],[Наименование изделия]],категории!J9:K71,2,0)","v":{"$error":"#N/A"}},{"$f":"Брак2412131415161718[[#This Row],[Выработка               и Брак]]*Брак2412131415161718[[#This Row],[Цена     1 изделия]]","v":{"$error":"#N/A"}}]
[null,{"$f":"VLOOKUP(Брак2412131415161718[[#This Row],[№]],категории!D:E,2,0)","v":{"$error":"#N/A"}},null,null,{"$f":"VLOOKUP(Брак2412131415161718[[#This Row],[Артикул изделия]],категории!I:J,2,0)","v":{"$error":"#N/A"}},null,{"$f":"VLOOKUP(Брак2412131415161718[[#This Row],[Наименование изделия]],категории!J5:K69,2,0)","v":{"$error":"#N/A"}},{"$f":"Брак2412131415161718[[#This Row],[Выработка               и Брак]]*Брак2412131415161718[[#This Row],[Цена     1 изделия]]","v":{"$error":"#N/A"}}]
[null,{"$f":"VLOOKUP(Брак2412131415161718[[#This Row],[№]],категории!D:E,2,0)","v":{"$error":"#N/A"}},null,null,{"$f":"VLOOKUP(Брак2412131415161718[[#This Row],[Артикул изделия]],категории!I:J,2,0)","v":{"$error":"#N/A"}},null,{"$f":"VLOOKUP(Брак2412131415161718[[#This Row],[Наименование изделия]],категории!J6:K70,2,0)","v":{"$error":"#N/A"}},{"$f":"Брак2412131415161718[[#This Row],[Выработка               и Брак]]*Брак2412131415161718[[#This Row],[Цена     1 изделия]]","v":{"$error":"#N/A"}}]
[null,{"$f":"VLOOKUP(Брак2412131415161718[[#This Row],[№]],категории!D:E,2,0)","v":{"$error":"#N/A"}},null,null,{"$f":"VLOOKUP(Брак2412131415161718[[#This Row],[Артикул изделия]],категории!I:J,2,0)","v":{"$error":"#N/A"}},null,{"$f":"VLOOKUP(Брак2412131415161718[[#This Row],[Наименование изделия]],категории!J7:K71,2,0)","v":{"$error":"#N/A"}},{"$f":"Брак2412131415161718[[#This Row],[Выработка               и Брак]]*Брак2412131415161718[[#This Row],[Цена     1 изделия]]","v":{"$error":"#N/A"}}]
[null,{"$f":"VLOOKUP(Брак2412131415161718[[#This Row],[№]],категории!D:E,2,0)","v":{"$error":"#N/A"}},null,null,{"$f":"VLOOKUP(Брак2412131415161718[[#This Row],[Артикул изделия]],категории!I:J,2,0)","v":{"$error":"#N/A"}},null,{"$f":"VLOOKUP(Брак2412131415161718[[#This Row],[Наименование изделия]],категории!J8:K72,2,0)","v":{"$error":"#N/A"}},{"$f":"Брак2412131415161718[[#This Row],[Выработка               и Брак]]*Брак2412131415161718[[#This Row],[Цена     1 изделия]]","v":{"$error":"#N/A"}}]
[null,{"$f":"VLOOKUP(Брак2412131415161718[[#This Row],[№]],категории!D:E,2,0)","v":{"$error":"#N/A"}},null,null,{"$f":"VLOOKUP(Брак2412131415161718[[#This Row],[Артикул изделия]],категории!I:J,2,0)","v":{"$error":"#N/A"}},null,{"$f":"VLOOKUP(Брак2412131415161718[[#This Row],[Наименование изделия]],категории!J9:K73,2,0)","v":{"$error":"#N/A"}},{"$f":"Брак2412131415161718[[#This Row],[Выработка               и Брак]]*Брак2412131415161718[[#This Row],[Цена     1 изделия]]","v":{"$error":"#N/A"}}]
[null,{"$f":"VLOOKUP(Брак2412131415161718[[#This Row],[№]],категории!D:E,2,0)","v":{"$error":"#N/A"}},null,null,{"$f":"VLOOKUP(Брак2412131415161718[[#This Row],[Артикул изделия]],категории!I:J,2,0)","v":{"$error":"#N/A"}},null,{"$f":"VLOOKUP(Брак2412131415161718[[#This Row],[Наименование изделия]],категории!J10:K74,2,0)","v":{"$error":"#N/A"}},{"$f":"Брак2412131415161718[[#This Row],[Выработка               и Брак]]*Брак2412131415161718[[#This Row],[Цена     1 изделия]]","v":{"$error":"#N/A"}}]
[null,{"$f":"VLOOKUP(Брак2412131415161718[[#This Row],[№]],категории!D:E,2,0)","v":{"$error":"#N/A"}},null,null,{"$f":"VLOOKUP(Брак2412131415161718[[#This Row],[Артикул изделия]],категории!I:J,2,0)","v":{"$error":"#N/A"}},null,{"$f":"VLOOKUP(Брак2412131415161718[[#This Row],[Наименование изделия]],категории!J11:K75,2,0)","v":{"$error":"#N/A"}},{"$f":"Брак2412131415161718[[#This Row],[Выработка               и Брак]]*Брак2412131415161718[[#This Row],[Цена     1 изделия]]","v":{"$error":"#N/A"}}]

{"sheet":"Замазка 20","index":7,"n_rows":4,"n_cols":14,"rows_kept":4,"cut":false,"hidden":false,"merged":[[0,11,0,12]]}
["Дата","ФИО                                                  Замазка","№","Артикул изделия","Наименование изделия","Выработка               и Брак","Цена     1 изделия","Сумма",null,null,{"$f":"SUM(Брак241213141516171819[Выработка               и Брак])","v":0},"Подсказка:                                                                     Выработка - номер участка                                                                                           Брак - номер работника"]
["2020-12-09",{"$f":"VLOOKUP(Брак241213141516171819[[#This Row],[№]],категории!D:E,2,0)","v":"Шамеев Владимир"},74,39,{"$f":"VLOOKUP(Брак241213141516171819[[#This Row],[Артикул изделия]],категории!I:J,2,0)","v":"Жар 29 (28х28см)"},0,{"$f":"VLOOKUP(Брак241213141516171819[[#This Row],[Наименование изделия]],категории!J1:K65,2,0)","v":11.2},{"$f":"Брак241213141516171819[[#This Row],[Выработка               и Брак]]*Брак241213141516171819[[#This Row],[Цена     1 изделия]]","v":0},null,null,"Итого ",null,null," "]
["2020-12-10",{"$f":"VLOOKUP(Брак241213141516171819[[#This Row],[№]],категории!D:E,2,0)","v":"Без имени и племени"},11,18,{"$f":"VLOOKUP(Брак241213141516171819[[#This Row],[Артикул изделия]],категории!I:J,2,0)","v":"СК 18"},null,{"$f":"VLOOKUP(Брак241213141516171819[[#This Row],[Наименование изделия]],категории!J7:K70,2,0)","v":{"$error":"#N/A"}},{"$f":"Брак241213141516171819[[#This Row],[Выработка               и Брак]]*Брак241213141516171819[[#This Row],[Цена     1 изделия]]","v":{"$error":"#N/A"}}]
[null,{"$f":"VLOOKUP(Брак241213141516171819[[#This Row],[№]],категории!D:E,2,0)","v":{"$error":"#N/A"}},null,null,{"$f":"VLOOKUP(Брак241213141516171819[[#This Row],[Артикул изделия]],категории!I:J,2,0)","v":{"$error":"#N/A"}},null,{"$f":"VLOOKUP(Брак241213141516171819[[#This Row],[Наименование изделия]],категории!J9:K71,2,0)","v":{"$error":"#N/A"}},{"$f":"Брак241213141516171819[[#This Row],[Выработка               и Брак]]*Брак241213141516171819[[#This Row],[Цена     1 изделия]]","v":{"$error":"#N/A"}}]

{"sheet":"Грунт 21","index":8,"n_rows":16,"n_cols":14,"rows_kept":16,"cut":false,"hidden":false,"merged":[[0,11,0,12]]}
["Дата","ФИО                                             Грунтовка","№","Артикул изделия","Наименование изделия","Выработка               и Брак","Цена     1 изделия","Сумма",null,null,{"$f":"SUM(Брак24121314151617181920[Выработка               и Брак])","v":3},"Подсказка:                                                                     Выработка - номер участка                                                                                           Брак - номер работника"]
["09.12.2020",{"$f":"VLOOKUP(Брак24121314151617181920[[#This Row],[№]],категории!D:E,2,0)","v":"Шайхутдинов Данис"},58,"1-510",{"$f":"VLOOKUP(Брак24121314151617181920[[#This Row],[Артикул изделия]],категории!I:J,2,0)","v":"Крышка 10л (Ø36см)"},1,{"$f":"VLOOKUP(Брак24121314151617181920[[#This Row],[Наименование изделия]],категории!J1:K65,2,0)","v":14.5},{"$f":"Брак24121314151617181920[[#This Row],[Выработка               и Брак]]*Брак24121314151617181920[[#This Row],[Цена     1 изделия]]","v":14.5},null,null,"Итого ",null,null," "]
["09.12.2020",{"$f":"VLOOKUP(Брак24121314151617181920[[#This Row],[№]],категории!D:E,2,0)","v":"Шайхутдинов Данис"},58,"1-510",{"$f":"VLOOKUP(Брак24121314151617181920[[#This Row],[Артикул изделия]],категории!I:J,2,0)","v":"Крышка 10л (Ø36см)"},1,{"$f":"VLOOKUP(Брак24121314151617181920[[#This Row],[Наименование изделия]],категории!J2:K66,2,0)","v":14.5},{"$f":"Брак24121314151617181920[[#This Row],[Выработка               и Брак]]*Брак24121314151617181920[[#This Row],[Цена     1 изделия]]","v":14.5}]
["09.12.2020",{"$f":"VLOOKUP(Брак24121314151617181920[[#This Row],[№]],категории!D:E,2,0)","v":"Шайхутдинов Данис"},58,"1-510",{"$f":"VLOOKUP(Брак24121314151617181920[[#This Row],[Артикул изделия]],категории!I:J,2,0)","v":"Крышка 10л (Ø36см)"},1,{"$f":"VLOOKUP(Брак24121314151617181920[[#This Row],[Наименование изделия]],категории!J3:K67,2,0)","v":14.5},{"$f":"Брак24121314151617181920[[#This Row],[Выработка               и Брак]]*Брак24121314151617181920[[#This Row],[Цена     1 изделия]]","v":14.5}]
["2020-12-09",{"$f":"VLOOKUP(Брак24121314151617181920[[#This Row],[№]],категории!D:E,2,0)","v":"Шамеев Владимир"},74,39,{"$f":"VLOOKUP(Брак24121314151617181920[[#This Row],[Артикул изделия]],категории!I:J,2,0)","v":"Жар 29 (28х28см)"},0,{"$f":"VLOOKUP(Брак24121314151617181920[[#This Row],[Наименование изделия]],категории!J4:K68,2,0)","v":11.2},{"$f":"Брак24121314151617181920[[#This Row],[Выработка               и Брак]]*Брак24121314151617181920[[#This Row],[Цена     1 изделия]]","v":0}]
["2020-12-10",{"$f":"VLOOKUP(Брак24121314151617181920[[#This Row],[№]],категории!D:E,2,0)","v":"Без имени и племени"},11,18,{"$f":"VLOOKUP(Брак24121314151617181920[[#This Row],[Артикул изделия]],категории!I:J,2,0)","v":"СК 18"},null,{"$f":"VLOOKUP(Брак24121314151617181920[[#This Row],[Наименование изделия]],категории!J5:K69,2,0)","v":{"$error":"#N/A"}},{"$f":"Брак24121314151617181920[[#This Row],[Выработка               и Брак]]*Брак24121314151617181920[[#This Row],[Цена     1 изделия]]","v":{"$error":"#N/A"}}]
[null,{"$f":"VLOOKUP(Брак24121314151617181920[[#This Row],[№]],категории!D:E,2,0)","v":{"$error":"#N/A"}},null,null,{"$f":"VLOOKUP(Брак24121314151617181920[[#This Row],[Артикул изделия]],категории!I:J,2,0)","v":{"$error":"#N/A"}},null,{"$f":"VLOOKUP(Брак24121314151617181920[[#This Row],[Наименование изделия]],категории!J7:K70,2,0)","v":{"$error":"#N/A"}},{"$f":"Брак24121314151617181920[[#This Row],[Выработка               и Брак]]*Брак24121314151617181920[[#This Row],[Цена     1 изделия]]","v":{"$error":"#N/A"}}]
[null,{"$f":"VLOOKUP(Брак24121314151617181920[[#This Row],[№]],категории!D:E,2,0)","v":{"$error":"#N/A"}},null,null,{"$f":"VLOOKUP(Брак24121314151617181920[[#This Row],[Артикул изделия]],категории!I:J,2,0)","v":{"$error":"#N/A"}},null,{"$f":"VLOOKUP(Брак24121314151617181920[[#This Row],[Наименование изделия]],категории!J9:K71,2,0)","v":{"$error":"#N/A"}},{"$f":"Брак24121314151617181920[[#This Row],[Выработка               и Брак]]*Брак24121314151617181920[[#This Row],[Цена     1 изделия]]","v":{"$error":"#N/A"}}]
[null,{"$f":"VLOOKUP(Брак24121314151617181920[[#This Row],[№]],категории!D:E,2,0)","v":{"$error":"#N/A"}},null,null,{"$f":"VLOOKUP(Брак24121314151617181920[[#This Row],[Артикул изделия]],категории!I:J,2,0)","v":{"$error":"#N/A"}},null,{"$f":"VLOOKUP(Брак24121314151617181920[[#This Row],[Наименование изделия]],категории!J8:K72,2,0)","v":{"$error":"#N/A"}},{"$f":"Брак24121314151617181920[[#This Row],[Выработка               и Брак]]*Брак24121314151617181920[[#This Row],[Цена     1 изделия]]","v":{"$error":"#N/A"}}]
[null,{"$f":"VLOOKUP(Брак24121314151617181920[[#This Row],[№]],категории!D:E,2,0)","v":{"$error":"#N/A"}},null,null,{"$f":"VLOOKUP(Брак24121314151617181920[[#This Row],[Артикул изделия]],категории!I:J,2,0)","v":{"$error":"#N/A"}},null,{"$f":"VLOOKUP(Брак24121314151617181920[[#This Row],[Наименование изделия]],категории!J9:K73,2,0)","v":{"$error":"#N/A"}},{"$f":"Брак24121314151617181920[[#This Row],[Выработка               и Брак]]*Брак24121314151617181920[[#This Row],[Цена     1 изделия]]","v":{"$error":"#N/A"}}]
[null,{"$f":"VLOOKUP(Брак24121314151617181920[[#This Row],[№]],категории!D:E,2,0)","v":{"$error":"#N/A"}},null,null,{"$f":"VLOOKUP(Брак24121314151617181920[[#This Row],[Артикул изделия]],категории!I:J,2,0)","v":{"$error":"#N/A"}},null,{"$f":"VLOOKUP(Брак24121314151617181920[[#This Row],[Наименование изделия]],категории!J10:K74,2,0)","v":{"$error":"#N/A"}},{"$f":"Брак24121314151617181920[[#This Row],[Выработка               и Брак]]*Брак24121314151617181920[[#This Row],[Цена     1 изделия]]","v":{"$error":"#N/A"}}]
[null,{"$f":"VLOOKUP(Брак24121314151617181920[[#This Row],[№]],категории!D:E,2,0)","v":{"$error":"#N/A"}},null,null,{"$f":"VLOOKUP(Брак24121314151617181920[[#This Row],[Артикул изделия]],категории!I:J,2,0)","v":{"$error":"#N/A"}},null,{"$f":"VLOOKUP(Брак24121314151617181920[[#This Row],[Наименование изделия]],категории!J11:K75,2,0)","v":{"$error":"#N/A"}},{"$f":"Брак24121314151617181920[[#This Row],[Выработка               и Брак]]*Брак24121314151617181920[[#This Row],[Цена     1 изделия]]","v":{"$error":"#N/A"}}]
[null,{"$f":"VLOOKUP(Брак24121314151617181920[[#This Row],[№]],категории!D:E,2,0)","v":{"$error":"#N/A"}},null,null,{"$f":"VLOOKUP(Брак24121314151617181920[[#This Row],[Артикул изделия]],категории!I:J,2,0)","v":{"$error":"#N/A"}},null,{"$f":"VLOOKUP(Брак24121314151617181920[[#This Row],[Наименование изделия]],категории!J12:K76,2,0)","v":{"$error":"#N/A"}},{"$f":"Брак24121314151617181920[[#This Row],[Выработка               и Брак]]*Брак24121314151617181920[[#This Row],[Цена     1 изделия]]","v":{"$error":"#N/A"}}]
[null,{"$f":"VLOOKUP(Брак24121314151617181920[[#This Row],[№]],категории!D:E,2,0)","v":{"$error":"#N/A"}},null,null,{"$f":"VLOOKUP(Брак24121314151617181920[[#This Row],[Артикул изделия]],категории!I:J,2,0)","v":{"$error":"#N/A"}},null,{"$f":"VLOOKUP(Брак24121314151617181920[[#This Row],[Наименование изделия]],категории!J13:K77,2,0)","v":{"$error":"#N/A"}},{"$f":"Брак24121314151617181920[[#This Row],[Выработка               и Брак]]*Брак24121314151617181920[[#This Row],[Цена     1 изделия]]","v":{"$error":"#N/A"}}]
[null,{"$f":"VLOOKUP(Брак24121314151617181920[[#This Row],[№]],категории!D:E,2,0)","v":{"$error":"#N/A"}},null,null,{"$f":"VLOOKUP(Брак24121314151617181920[[#This Row],[Артикул изделия]],категории!I:J,2,0)","v":{"$error":"#N/A"}},null,{"$f":"VLOOKUP(Брак24121314151617181920[[#This Row],[Наименование изделия]],категории!J14:K78,2,0)","v":{"$error":"#N/A"}},{"$f":"Брак24121314151617181920[[#This Row],[Выработка               и Брак]]*Брак24121314151617181920[[#This Row],[Цена     1 изделия]]","v":{"$error":"#N/A"}}]
[null,{"$f":"VLOOKUP(Брак24121314151617181920[[#This Row],[№]],категории!D:E,2,0)","v":{"$error":"#N/A"}},null,null,{"$f":"VLOOKUP(Брак24121314151617181920[[#This Row],[Артикул изделия]],категории!I:J,2,0)","v":{"$error":"#N/A"}},null,{"$f":"VLOOKUP(Брак24121314151617181920[[#This Row],[Наименование изделия]],категории!J15:K79,2,0)","v":{"$error":"#N/A"}},{"$f":"Брак24121314151617181920[[#This Row],[Выработка               и Брак]]*Брак24121314151617181920[[#This Row],[Цена     1 изделия]]","v":{"$error":"#N/A"}}]

{"sheet":"АП  22","index":9,"n_rows":9,"n_cols":14,"rows_kept":9,"cut":false,"hidden":false,"merged":[[0,11,0,12]]}
["Дата","ФИО                                                АП","№","Артикул изделия","Наименование изделия","Выработка               и Брак","Цена     1 изделия","Сумма",null,null,{"$f":"SUM(Брак2412131415161718192021[Выработка               и Брак])","v":1},"Подсказка:                                                                     Выработка - номер участка                                                                                           Брак - номер работника"]
["09.12.2020",{"$f":"VLOOKUP(Брак2412131415161718192021[[#This Row],[№]],категории!D:E,2,0)","v":"Шайхутдинов Данис"},58,"1-510",{"$f":"VLOOKUP(Брак2412131415161718192021[[#This Row],[Артикул изделия]],категории!I:J,2,0)","v":"Крышка 10л (Ø36см)"},1,{"$f":"VLOOKUP(Брак2412131415161718192021[[#This Row],[Наименование изделия]],категории!J1:K65,2,0)","v":14.5},{"$f":"Брак2412131415161718192021[[#This Row],[Выработка               и Брак]]*Брак2412131415161718192021[[#This Row],[Цена     1 изделия]]","v":14.5},null,null,"Итого ",null,null," "]
["2020-12-10",{"$f":"VLOOKUP(Брак2412131415161718192021[[#This Row],[№]],категории!D:E,2,0)","v":"Без имени и племени"},11,18,{"$f":"VLOOKUP(Брак2412131415161718192021[[#This Row],[Артикул изделия]],категории!I:J,2,0)","v":"СК 18"},null,{"$f":"VLOOKUP(Брак2412131415161718192021[[#This Row],[Наименование изделия]],категории!J7:K70,2,0)","v":{"$error":"#N/A"}},{"$f":"Брак2412131415161718192021[[#This Row],[Выработка               и Брак]]*Брак2412131415161718192021[[#This Row],[Цена     1 изделия]]","v":{"$error":"#N/A"}}]
[null,{"$f":"VLOOKUP(Брак2412131415161718192021[[#This Row],[№]],категории!D:E,2,0)","v":{"$error":"#N/A"}},null,null,{"$f":"VLOOKUP(Брак2412131415161718192021[[#This Row],[Артикул изделия]],категории!I:J,2,0)","v":{"$error":"#N/A"}},null,{"$f":"VLOOKUP(Брак2412131415161718192021[[#This Row],[Наименование изделия]],категории!J9:K71,2,0)","v":{"$error":"#N/A"}},{"$f":"Брак2412131415161718192021[[#This Row],[Выработка               и Брак]]*Брак2412131415161718192021[[#This Row],[Цена     1 изделия]]","v":{"$error":"#N/A"}}]
[null,{"$f":"VLOOKUP(Брак2412131415161718192021[[#This Row],[№]],категории!D:E,2,0)","v":{"$error":"#N/A"}},null,null,{"$f":"VLOOKUP(Брак2412131415161718192021[[#This Row],[Артикул изделия]],категории!I:J,2,0)","v":{"$error":"#N/A"}},null,{"$f":"VLOOKUP(Брак2412131415161718192021[[#This Row],[Наименование изделия]],категории!J4:K68,2,0)","v":{"$error":"#N/A"}},{"$f":"Брак2412131415161718192021[[#This Row],[Выработка               и Брак]]*Брак2412131415161718192021[[#This Row],[Цена     1 изделия]]","v":{"$error":"#N/A"}}]
[null,{"$f":"VLOOKUP(Брак2412131415161718192021[[#This Row],[№]],категории!D:E,2,0)","v":{"$error":"#N/A"}},null,null,{"$f":"VLOOKUP(Брак2412131415161718192021[[#This Row],[Артикул изделия]],категории!I:J,2,0)","v":{"$error":"#N/A"}},null,{"$f":"VLOOKUP(Брак2412131415161718192021[[#This Row],[Наименование изделия]],категории!J5:K69,2,0)","v":{"$error":"#N/A"}},{"$f":"Брак2412131415161718192021[[#This Row],[Выработка               и Брак]]*Брак2412131415161718192021[[#This Row],[Цена     1 изделия]]","v":{"$error":"#N/A"}}]
[null,{"$f":"VLOOKUP(Брак2412131415161718192021[[#This Row],[№]],категории!D:E,2,0)","v":{"$error":"#N/A"}},null,null,{"$f":"VLOOKUP(Брак2412131415161718192021[[#This Row],[Артикул изделия]],категории!I:J,2,0)","v":{"$error":"#N/A"}},null,{"$f":"VLOOKUP(Брак2412131415161718192021[[#This Row],[Наименование изделия]],категории!J6:K70,2,0)","v":{"$error":"#N/A"}},{"$f":"Брак2412131415161718192021[[#This Row],[Выработка               и Брак]]*Брак2412131415161718192021[[#This Row],[Цена     1 изделия]]","v":{"$error":"#N/A"}}]
[null,{"$f":"VLOOKUP(Брак2412131415161718192021[[#This Row],[№]],категории!D:E,2,0)","v":{"$error":"#N/A"}},null,null,{"$f":"VLOOKUP(Брак2412131415161718192021[[#This Row],[Артикул изделия]],категории!I:J,2,0)","v":{"$error":"#N/A"}},null,{"$f":"VLOOKUP(Брак2412131415161718192021[[#This Row],[Наименование изделия]],категории!J7:K71,2,0)","v":{"$error":"#N/A"}},{"$f":"Брак2412131415161718192021[[#This Row],[Выработка               и Брак]]*Брак2412131415161718192021[[#This Row],[Цена     1 изделия]]","v":{"$error":"#N/A"}}]
[null,{"$f":"VLOOKUP(Брак2412131415161718192021[[#This Row],[№]],категории!D:E,2,0)","v":{"$error":"#N/A"}},null,null,{"$f":"VLOOKUP(Брак2412131415161718192021[[#This Row],[Артикул изделия]],категории!I:J,2,0)","v":{"$error":"#N/A"}},null,{"$f":"VLOOKUP(Брак2412131415161718192021[[#This Row],[Наименование изделия]],категории!J8:K72,2,0)","v":{"$error":"#N/A"}},{"$f":"Брак2412131415161718192021[[#This Row],[Выработка               и Брак]]*Брак2412131415161718192021[[#This Row],[Цена     1 изделия]]","v":{"$error":"#N/A"}}]

{"sheet":"категории","index":10,"n_rows":192,"n_cols":17,"rows_kept":192,"cut":false,"hidden":false,"merged":[]}
[null,null,"ФИО          Участок","№","ФИО          Участок","Выработка - номер участка       Брак - номер работника",null,null,"Артикул изделия","наименование изделия","цена 1 брака литейщику",null,null,null,null,"Дата",{"$f":"DATEVALUE(\"11.12.20\")","v":"2020-12-11"}]
[null,null,"Без имени и племени",11,"Без имени и племени",null,null,null,18,"СК 18",6.5,null,null,null,null,"№ работника",55]
[null,null,null,12,null,null,null,null,20,"СК 20",6.9,null,null,null,null,"Артикул изделия",32]
[null,null,"Литейка",13,"Литейка",null,null,null,22,"СК 22",7.5,null,null,null,null,"Количество брака",55]
[null,null,"Обрубка",14,"Обрубка",null,null,null,24,"СК 24",8.3000000000000007]
[null,null,"Токарный",15,"Токарный",null,null,null,25,"СК 24 кв",8.3000000000000007]
[null,null,"Резьбонарезка",16,"Резьбонарезка",null,null,null,26,"СК 26",9]
[null,null,"Переборка",17,"Переборка",null,null,null,27,"СК 26 кв",9]
[null,null,"Обжиг",18,"Обжиг",null,null,null,28,"СК 28",9.5]
[null,null,"Дробилка",19,"Дробилка",null,null,null,29,"СК 28 кв",9.5]
[null,null,"Замазка",20,"Замазка",null,null,null,30,"СК 30",10]
[null,null,"Грунтовка",21,"Грунтовка",null,null,null,207,"СК 20 г",6.6]
[null,null,"АП",22,"АП",null,null,null,227,"СК 22 г",7.2]
[null,null," ",23," ",null,null,null,247,"СК 24 г",7.7]
[null,null," ",24," ",null,null,null,267,"СК 26 г",8.5]
[null,null," ",25," ",null,null,null,287,"СК 28 г",9.4]
[null,null," ",26," ",null,null,null,307,"СК 30 г",9.6]
[null,null," ",27," ",null,null,null,10,"БЛ 20",5.6]
[null,null,"Технический брак",28,"Технический брак",null,null,null,12,"БЛ 22",5.8]
[null,null,null,29,null,null,null,null,14,"БЛ 24",6]
[null,null,"Гаптрахимов Рамиль",31,"Гаптрахимов Рамиль",null,null,null,64,"Гриль 24 (24см)",10.9]
[null,null,"Залялютдинов Данил",32,"Залялютдинов Данил",null,null,null,65,"Грильн 25 (25см)",8]
[null,null,"Хаеров Данил",33,"Хаеров Данил",null,null,null,66,"Гриль 26 (26см)",12]
[null,null,"Кормильцев Д.",34,"Кормильцев Д.",null,null,null,68,"Гриль 28 (28см)",13]
[null,null,"Фатхрахманов Ильшат",35,"Фатхрахманов Ильшат",null,null,null,78,"ВОК (Ø28см)",9.1]
[null,null,"Ахметгалиев Ильнар",36,"Ахметгалиев Ильнар",null,null,null,82,"Ковш 1,7 (Ø18см)",9.1999999999999993]
[null,null,"Сабиров Ильназ",37,"Сабиров Ильназ",null,null,null,32,"Жар 2 (Ø24 см)",10.1]
[null,null,"Ашрабзянов Энгель",38,"Ашрабзянов Энгель",null,null,null,33,"Жар 3 (Ø26см)",10.8]
[null,null,"Гузаеров Рамиль",39,"Гузаеров Рамиль",null,null,null,34,"Жар 4 (Ø28см)",11.2]
[null,null,"Гузаеров Рамис",40,"Гузаеров Рамис",null,null,null,35,"Жар 5 (Ø30см)",14.2]
[null,null,"Абдуллин Фандас",41,"Абдуллин Фандас",null,null,null,36,"Жар 6 (Ø32см)",18]
[null,null,"Фазылгалиев Айдар",42,"Фазылгалиев Айдар",null,null,null,37,"Жар 24 (24х24см)",10.1]
[null,null,"Латыпов Раниф",43,"Латыпов Раниф",null,null,null,38,"Жар 26 (26х26см)",10.8]
[null,null,"Гарипов Ильфат",44,"Гарипов Ильфат",null,null,null,39,"Жар 29 (28х28см)",11.2]
[null,null,"Ваганов Владислав",45,"Ваганов Владислав",null,null,null,42,"Каст 2 (Ø20см)",10.199999999999999]
[null,null,"Аполинариев Дмитрий",46,"Аполинариев Дмитрий",null,null,null,43,"Каст 3 (Ø22см)",10.5]
[null,null,"Фатхуллин Ильяс",47,"Фатхуллин Ильяс",null,null,null,44,"Каст 4 (Ø24см)",11.1]
[null,null,"Архипов Руслан",48,"Архипов Руслан",null,null,null,45,"Каст 5 (Ø26см)",14.1]
[null,null,"Галиуллин Айнур",49,"Галиуллин Айнур",null,null,null,46,"Каст 6 (Ø28см)",15]
[null,null,"Егоров Владлен",50,"Егоров Владлен",null,null,null,48,"Каст 8 (Ø30см)",18.75]
[null,null,"Ибрагимов Ильфат ",51,"Ибрагимов Ильфат ",null,null,null,410,"Каст 10 (Ø32см)",19]
[null,null,"Махмудов Марат",52,"Махмудов Марат",null,null,null,54,"Плов 4 (Ø24см)",11]
[null,null,"Галимов Дамир",53,"Галимов Дамир",null,null,null,55,"Плов 5 (Ø26см)",14]
[null,null,"Махмудов Рамил",54,"Махмудов Рамил",null,null,null,56,"Плов 6 (Ø28см)",16]
[null,null,"Шахтин Дмитрий",55,"Шахтин Дмитрий",null,null,null,57,"Плов 7 (Ø30см)",17]
[null,null,"Егоров Евгений",56,"Егоров Евгений",null,null,null,58,"Плов 8 (Ø32см)",17.5]
[null,null,"Ахметзянов Фанзил",57,"Ахметзянов Фанзил",null,null,null,510,"Плов 10 (Ø36см)",19]
[null,null,"Шайхутдинов Данис",58,"Шайхутдинов Данис",null,null,null,513,"Плов 13 (Ø42см)",21.5]
[null,null,"Хайруллин Рамиль",59,"Хайруллин Рамиль",null,null,null,516,"Плов 16 (Ø46см)",25]
[null,null,"Дардымов Виктор",60,"Дардымов Виктор",null,null,null,522,"Плов 22 (Ø51см)",27.5]
[null,null,"Сафиуллин Ильмир",61,"Сафиуллин Ильмир",null,null,null,92,"Протв 92 (19х27)",8.4]
[null,null,"Каримов Ильшат",62,"Каримов Ильшат",null,null,null,93,"Протв 93 (22х33)",9.3000000000000007]
[null,null,"Ахметшин Айдар А.",63,"Ахметшин Айдар А.",null,null,null,94,"Протв 94 (27х36,5)",11.5]
[null,null,"Габидуллин Фанзил",64,"Габидуллин Фанзил",null,null,null,95,"Протв 95 (30х40)",14.5]
[null,null,"Власкин Евгений",65,"Власкин Евгений",null,null,null,"1-42","Крышка 2л (Ø20см)",10]
[null,null,"Хамидуллин Булат",66,"Хамидуллин Булат",null,null,null,"1-43","Крышка 3л (Ø22см)",10]
[null,null,"Хамитов Рамис",67,"Хамитов Рамис",null,null,null,"1-54","Крышка 4л (Ø24см)",12.5]
[null,null,"Николаев Валерий",68,"Николаев Валерий",null,null,null,"1-55","Крышка 5л (Ø26см)",12.7]
[null,null,"Хабибуллин Нафис",69,"Хабибуллин Нафис",null,null,null,"1-56","Крышка 6л (Ø28см)",12.9]
[null,null,"Хабибуллин Ильназ",70,"Хабибуллин Ильназ",null,null,null,"1-57","Крышка 7л (Ø30см)",14.5]
[null,null,"Муллахметов Райнур",71,"Муллахметов Райнур",null,null,null,"1-58","Крышка 8л (Ø32см)",14.5]
[null,null,"Леонтьев Игорь",72,"Леонтьев Игорь",null,null,null,"1-510","Крышка 10л (Ø36см)",14.5]
[null,null,"Степанов Эдуард",73,"Степанов Эдуард",null,null,null,"1-513","Крышка 13л (Ø41см)",14.75]
[null,null,"Шамеев Владимир",74,"Шамеев Владимир",null,null,null,"1-516","Крышка 16л (Ø46см)",16]
[null,null,"Гарипов Руслан",75,"Гарипов Руслан",null,null,null,"1-522","Крышка 22л (Ø51см)",16.5]
[null,null,"Гарипов Алмаз",76,"Гарипов Алмаз"]
[null,null,"Саторов Оятуло",77,"Саторов Оятуло"]
[null,null,"Низамов Владимир",78,"Низамов Владимир"]
[null,null,"Михайлов Артем",79,"Михайлов Артем"]
[null,null,"Зайнуллин Ильназ",80,"Зайнуллин Ильназ"]
[null,null,"Хафизов Айзат",81,"Хафизов Айзат"]
[null,null,"Мухаметзянов Харис",82,"Мухаметзянов Харис"]
[null,null,"Гафаров Рамис",83,"Гафаров Рамис"]
[null,null,"Исрафилов Рамиз",84,"Исрафилов Рамиз"]
[null,null,"Ахметшин Айрат А.",85,"Ахметшин Айрат А."]
[null,null,"Рахимуллин Альберт",86,"Рахимуллин Альберт"]
[null,null,"Фатхудинов Линур",87,"Фатхудинов Линур"]
[null,null,"Фазлиев Рамис",88,"Фазлиев Рамис"]
[null,null,"Исмагилов Дамир",89,"Исмагилов Дамир"]
[null,null,"Плешенков Андрей",90,"Плешенков Андрей"]
[null,null,"Давлятшин Алмаз",91,"Давлятшин Алмаз"]
[null,null,"Петров Дмитрий",92,"Петров Дмитрий"]
[null,null,"Гарифуллин Зульфат",93,"Гарифуллин Зульфат"]
[null,null,"Назипов Марсель",94,"Назипов Марсель"]
[null,null,"Валиханов Азат",95,"Валиханов Азат"]
[null,null,"Шарипов Равиль",96,"Шарипов Равиль"]
[null,null,"Гузаеров Ильназ",97,"Гузаеров Ильназ"]
[null,null,"Искандиров Радик",98,"Искандиров Радик"]
[null,null,"Галиев Альберт",99,"Галиев Альберт"]
[null,null,"Латыпов Максим",100,"Латыпов Максим"]
[null,null,"Каримов Ильяс",101,"Каримов Ильяс"]
[null,null,"Мещеряков Ильдар",102,"Мещеряков Ильдар"]
[null,null,"Иванов Ильнур",103,"Иванов Ильнур"]
[null,null,"Мингалиев Ильнур",104,"Мингалиев Ильнур"]
[null,null,"Гузаеров Рафис",105,"Гузаеров Рафис"]
[null,null,"Мубаракшин Рустам",106,"Мубаракшин Рустам"]
[null,null,"Сафин Ильназ",107,"Сафин Ильназ"]
[null,null,"Аглиуллин Ильшат",108,"Аглиуллин Ильшат"]
[null,null,"Осипов Артем",109,"Осипов Артем"]
[null,null,"Габитов Марсель",110,"Габитов Марсель"]
[null,null,"Зиатдинов Ильнур",111,"Зиатдинов Ильнур"]
[null,null,"Мухаметзянов Артур",112,"Мухаметзянов Артур"]
[null,null,"Леонтьев Валентин",113,"Леонтьев Валентин"]
[null,null,"Шайхутдинов Инсаф",114,"Шайхутдинов Инсаф"]
[null,null,"Тимергалиев Ильназ",115,"Тимергалиев Ильназ"]
[null,null,"Габдрахманов Фанзиль",116,"Габдрахманов Фанзиль"]
[null,null,"Муртазин Фердинант",117,"Муртазин Фердинант"]
[null,null,"Валеев Рамиль",118,"Валеев Рамиль"]
[null,null,"Гильмутдинов Рустам",119,"Гильмутдинов Рустам"]
[null,null,"Мингазов Булат",120,"Мингазов Булат"]
[null,null,"Гильмутдинов Ренат",121,"Гильмутдинов Ренат"]
[null,null,"Апарин Руслан",122,"Апарин Руслан"]
[null,null,"Ярмиев Зульфат",123,"Ярмиев Зульфат"]
[null,null,"Гилязов Фарид",124,"Гилязов Фарид"]
[null,null,"Алтафутдинов Ирек",125,"Алтафутдинов Ирек"]
[null,null,"Галимзянов Айдар",126,"Галимзянов Айдар"]
[null,null,"Ганеев Ильназ",127,"Ганеев Ильназ"]
[null,null,"Газизуллин Разиль",128,"Газизуллин Разиль"]
[null,null,"Сайфутдинов Роберт",129,"Сайфутдинов Роберт"]
[null,null,"Михалёв Ефим",130,"Михалёв Ефим"]
[null,null,"Гайфуллин Юрий",131,"Гайфуллин Юрий"]
[null,null,"Миннимуллин Азат",132,"Миннимуллин Азат"]
[null,null,"Кузьмин Александр",133,"Кузьмин Александр"]
[null,null,"Шарафиев Джаудат",134,"Шарафиев Джаудат"]
[null,null,"Исмагилов Альберт",135,"Исмагилов Альберт"]
[null,null,"Габдрахманов Ильдар",136,"Габдрахманов Ильдар"]
[null,null,"Сибгатуллин Рамис",137,"Сибгатуллин Рамис"]
[null,null,"Зайнуллин Алексей",138,"Зайнуллин Алексей"]
[null,null,"Кириллов Александр",139,"Кириллов Александр"]
[null,null,"Хисамиев Рафиль",140,"Хисамиев Рафиль"]
[null,null,"Мухаметзянов Данис",141,"Мухаметзянов Данис"]
[null,null,"Мухаматдинов Айзат",142,"Мухаматдинов Айзат"]
[null,null,"Тимеров Мухамеднур",143,"Тимеров Мухамеднур"]
[null,null,"Сайфеев Евгений",144,"Сайфеев Евгений"]
[null,null,"Халиуллин Айрат",145,"Халиуллин Айрат"]
[null,null,"Мамкин Фарход",146,"Мамкин Фарход"]
[null,null,"Саляхутдинов Рамзиль",147,"Саляхутдинов Рамзиль"]
[null,null,"Гузаиров Рустам",148,"Гузаиров Рустам"]
[null,null,"Вафин Ильназ",149,"Вафин Ильназ"]
[null,null,"Иванов Радион",150,"Иванов Радион"]
[null,null,"Хамитов Рамзиль",151,"Хамитов Рамзиль"]
[null,null,"Тагиров Альберт",152,"Тагиров Альберт"]
[null,null,"Шишов Вячеслав",153,"Шишов Вячеслав"]
[null,null,"Вахрушев Лев",154,"Вахрушев Лев"]
[null,null,"Гатин Ришат",155,"Гатин Ришат"]
[null,null,"Артемьев Александр",156,"Артемьев Александр"]
[null,null,"Валиуллин Ралиф",157,"Валиуллин Ралиф"]
[null,null,"Мусин Алексей",158,"Мусин Алексей"]
[null,null,"Бадрутдинов Фархат",159,"Бадрутдинов Фархат"]
[null,null,"Галиуллин Ленар",160,"Галиуллин Ленар"]
[null,null,"Гимадутдинов Ильнур",161,"Гимадутдинов Ильнур"]
[null,null,"Васильев Анатолий",162,"Васильев Анатолий"]
[null,null,"Мубаракшин Альберт",163,"Мубаракшин Альберт"]
[null,null,"Вильданов Гафур",164,"Вильданов Гафур"]
[null,null,"Шаяхкамов Айрат",165,"Шаяхкамов Айрат"]
[null,null,"Хабибуллин Альберт",166,"Хабибуллин Альберт"]
[null,null,"Филиппов Андрей",167,"Филиппов Андрей"]
[null,null,"Семенов Валентин",168,"Семенов Валентин"]
[null,null,"Анисимов Андрей",169,"Анисимов Андрей"]
[null,null,"Пашагин Сергей",170,"Пашагин Сергей"]
[null,null,"Волков Иван",171,"Волков Иван"]
[null,null,"Батыркаев Ришат",172,"Батыркаев Ришат"]
[null,null,"Попов Дмитрий",173,"Попов Дмитрий"]
[null,null,"Хайруллин Ильфат",174,"Хайруллин Ильфат"]
[null,null,"Герасимов Эдуард",175,"Герасимов Эдуард"]
[null,null,"Михайлов Руслан",176,"Михайлов Руслан"]
[null,null,"Ибрагимов Динар",177,"Ибрагимов Динар"]
[null,null,"Мифтахов Сирень",178,"Мифтахов Сирень"]
[null,null,"Хасанов Булат",179,"Хасанов Булат"]
[null,null,"Миннемуллин Раниф",180,"Миннемуллин Раниф"]
[null,null,"Билалов Ильнур",181,"Билалов Ильнур"]
[null,null,"Мифтахов Альберт",182,"Мифтахов Альберт"]
[null,null,"Газизуллин Алмаз",183,"Газизуллин Алмаз"]
[null,null,"Маматов Дмитрий",184,"Маматов Дмитрий"]
[null,null,"Садиков Адель",185,"Садиков Адель"]
[null,null,"Тихонов Олег",186,"Тихонов Олег"]
[null,null,"Лялин Анатолий",187,"Лялин Анатолий"]
[null,null,"Саляхутдинов Басир",188,"Саляхутдинов Басир"]
[null,null,null,189]
[null,null,null,190]
[null,null,null,191]
[null,null,null,192]
[null,null,null,193]
[null,null,null,194]
[null,null,null,195]
[null,null,null,196]
[null,null,null,197]
[null,null,null,198]
[null,null,null,199]
[null,null,null,200]
[null,null,null,201]
[null,null,"конец",202,"конец"]